Cogmind - Beta 15 @@@ ROGUE MODE // 2025.07.25 @ 04:17:59 Player: Surreal Result: Self-destructed Performance ------------- Evolutions (5) 2500 Regions Visited (6) 1200 Robots Destroyed (36) 180 Value Destroyed (1295) 1295 Prototype IDs (8) 160 Alien Tech Used (0) 0 Bonus (300) 300 TOTAL SCORE: 5635 Bonus ------- Registered with UFD 300 Cogmind --------- Core Integrity 736/1000 Matter 267/300 Energy 94/150 System Corruption 2% Temperature Danger (450) Movement Core (300) Ox5 Location -5/Factory Parts ------- > --- POWER (3) -------- Light Angular Momentum Engine > --- PROPULSION (5) --- Improved VSS Leg > --- UTILITY (6) ------ Enhanced Optical Array Signal Interpreter Advanced Targeting Computer Improved Corruption Screen > --- WEAPON (3) ------- Phase Cannon > --- INVENTORY (5) ---- Improved Cooling System Force Field Neutron Cannon Peak State ------------ > --- POWER ------------ Light Fission Core Light Fission Core > --- PROPULSION ------- Flexi-carbon Leg Improved VSS Leg Improved VSS Leg Improved VSS Leg Thunder Leg > --- UTILITY ---------- Improved Heat Sink Enhanced Optical Array Signal Interpreter Advanced Targeting Computer Makeshift ECM Suite Improved Corruption Screen > --- WEAPON ----------- Pulse Rifle Phase Cannon Gauss Rifle > --- INVENTORY -------- Light Ion Engine Improved Cooling System Force Field [Rating: 70] Favorites ----------- Power Light Nuclear Core Engine Deuterium Engine Power Core Light Nuclear Core Propulsion Carbon-fiber Leg Leg Carbon-fiber Leg Utility Signal Interpreter Device Improved Heat Sink Storage Small Storage Unit Processor Signal Interpreter Weapon Beamcaster Energy Gun Beamcaster Energy Cannon Phase Cannon Ballistic Gun Gauss Rifle Ballistic Cannon Battle Cannon Build | -11 -10 -10 -8 -8 -6 -5 ------- Run | Yrd Mat Sub Rec Scr Fac Fac Slots Evolved 10 | . . . . . 8 2 Power 2 | . . . . . 1 1 Propulsion 3 | . . . . . 2 1 Utility 4 | . . . . . 4 . Weapon 1 | . . . . . 1 . Parts Attached 50 | 6 3 7 . 4 24 6 Power 13 | 1 . 1 . 3 5 3 Engine 9 | 1 . 1 . 2 3 2 Core 4 | . . . . 1 2 1 Reactor . | . . . . . . . Propulsion 11 | 2 . 3 . . 5 1 Treads . | . . . . . . . Leg 11 | 2 . 3 . . 5 1 Wheel . | . . . . . . . Hover . | . . . . . . . Flight . | . . . . . . . Utility 13 | 1 1 1 . . 8 2 Device 6 | . . 1 . . 4 1 Storage 3 | 1 . . . . 2 . Processor 4 | . 1 . . . 2 1 Hackware . | . . . . . . . Protection . | . . . . . . . Artifact . | . . . . . . . Weapon 13 | 2 2 2 . 1 6 . Energy Gun 6 | 2 2 1 . 1 . . Energy Cannon 2 | . . . . . 2 . Ballistic Gun 4 | . . . . . 4 . Ballistic Cannon 1 | . . 1 . . . . Launcher . | . . . . . . . Special Weapon . | . . . . . . . Impact Weapon . | . . . . . . . Slashing Weapon . | . . . . . . . Piercing Weapon . | . . . . . . . Special Melee Weapon . | . . . . . . . Unidentified Prototypes . | . . . . . . . Parts Lost 29 | . . 3 . . 12 14 Power 9 | . . 1 . . 3 5 Propulsion 8 | . . . . . 4 4 Utility 4 | . . . . . 1 3 Weapon 8 | . . 2 . . 4 2 Highest Loss Streak 12 | . . 1 . . 12 8 To Critical Strikes . | . . . . . . . Average Backups 4 | 2 5 5 5 4 2 2 Power . | . 1 1 1 . . . Propulsion 1 | 1 2 1 2 2 . . Utility 1 | . . 1 2 2 2 2 Weapon . | . 2 1 . . . . Tool/Special . | . . . . . . . Unused Backups 11 | . . 5 . 3 . 3 Power 1 | . . . . 1 . . Propulsion 2 | . . 2 . . . . Utility 5 | . . 1 . 2 . 2 Weapon 3 | . . 2 . . . 1 Tool/Special . | . . . . . . . Average Slot Usage (%) 91 | . 90 94 85 99 81 82 Engine 5 | . 14 11 . 3 5 1 Core 5 | . . . . 9 . 7 Leg 26 | . 28 28 28 28 21 25 Device 11 | . . 6 14 14 15 9 Storage 3 | . 14 7 . . 4 . Processor 15 | . 5 14 14 14 15 21 Energy Gun 15 | . 28 24 14 17 8 2 Energy Cannon 1 | . . . . . 3 5 Ballistic Gun 1 | . . . . . 3 2 Ballistic Cannon 4 | . . . 14 10 . . Peak Build Rating 70 | 6 7 17 17 22 58 70 Average Rating 27 | 4 6 11 17 20 37 60 On Entrance 18 | . 6 7 17 17 22 58 Naked Turns . | . . . . . . . Heaviest Build 51 | 13 14 17 9 18 51 44 Greatest Support 88 | 20 20 30 30 30 65 88 Greatest Overweight (x) 7 | 2 . . . . 7 2 Average Overweight (x) . | . . . . . . . Largest Inventory Capacity 15 | 8 8 8 5 5 15 5 Average Capacity 6 | 7 8 6 5 5 9 5 Most Carried 10 | 4 7 8 5 5 10 5 Average Carried 4 | 2 5 5 5 4 2 2 Final Capacity 8 | 8 8 5 5 5 5 5 Final Carried 6 | 4 6 5 5 5 3 3 Class Distribution -------------------- 52% | Scavenger-Mutant 19% | Mutant 13% | Scavenger-Gunner 6% | Derelict-Gunner 5% | Derelict-Mutant Dominant Class ---------------- Mutant | -10/Materials Mutant | -10/Subcaves Scavenger-Mutant | -8/Recycling Scavenger-Mutant | -8/Scraptown Derelict-Gunner | -6/Factory Scavenger-Gunner | -5/Factory Resources | -11 -10 -10 -8 -8 -6 -5 ----------- Run | Yrd Mat Sub Rec Scr Fac Fac Matter Collected 946 | 216 68 76 . 40 429 117 Remotely . | . . . . . . . Salvage Created 1620 | . 54 453 . . 657 456 Parts 79 | . 1 32 . . 31 15 Haulers Intercepted . | . . . . . . . Recyclers Shooed 3 | . . . . . 2 1 Parts Field Recycled . | . . . . . . . Retrieved Matter . | . . . . . . . Parts Self-Destructed 9 | . . 9 . . . . Prevented . | . . . . . . . Kills | -11 -10 -10 -8 -8 -6 -5 ------- Run | Yrd Mat Sub Rec Scr Fac Fac Combat Hostiles Destroyed 31 | . 2 11 . . 8 10 Guns 23 | . 2 11 . . 5 5 Cannons 8 | . . . . . 3 5 Classes Destroyed 10 | . 2 2 . . 6 . Recycler 2 | . . . . . 1 1 Turret 2 | . . 2 . . . . Watcher 1 | . 1 . . . . . Swarmer 13 | . 2 4 . . . 7 Grunt 4 | . . . . . 2 2 Sentry 1 | . . . . . 1 . Specialist 2 | . . . . . 2 . Hunter 2 | . . . . . 2 . Programmer 2 | . . . . . 1 1 Subdweller 7 | . . 7 . . . . Best Kill Streak 8 | . 2 5 . . 7 8 Combat Bots Only 7 | . 2 4 . . 7 5 Max Kills in Single Turn 1 | . 1 1 . . 1 1 Gunslinging . | . . . . . . . Exploded . | . . . . . . . Melee . | . . . . . . . Uniques/NPCs Destroyed . | . . . . . . . Combat | -11 -10 -10 -8 -8 -6 -5 -------- Run | Yrd Mat Sub Rec Scr Fac Fac Hostile Shots Fired 411 | . 31 93 . . 180 107 Missed 119 | . 7 37 . . 51 24 Hits 292 | . 24 56 . . 129 83 Projectile 292 | . 24 56 . . 129 83 Critical Strikes 9 | . . 1 . . 4 4 Part Disruptions 6 | . . . . . 5 1 Damage Taken 4033 | . 190 736 . . 1666 1441 Core 944 | . 39 177 . . 464 264 Absorbed by Shields . | . . . . . . . Core Remaining (%) 52 | 100 . . . 13 45 . Volleys Fired 137 | . 9 55 . . 34 39 Largest 3 | . 2 2 . . 3 3 Hottest 176 | . 100 125 . . 141 176 Shots Fired 230 | . 18 87 . . 62 63 Gun 176 | . 18 87 . . 43 28 Cannon 54 | . . . . . 19 35 Launcher . | . . . . . . . Special . | . . . . . . . Kinetic 53 | . . . . . 37 16 Thermal 158 | . 17 69 . . 25 47 Explosive . | . . . . . . . Electromagnetic 19 | . 1 18 . . . . Robot Hit Streak 20 | . 3 13 . . 11 20 Robot Miss Streak 6 | . 5 2 . . 2 6 Penetration Max 1 | . . . . . 1 1 Secondary Targets 5 | . . 4 . . 1 . Max Gunslinging Chain 1 | . . 1 . . 1 . Shots Hit Robots 156 | . 7 64 . . 46 39 Core Hits 67 | . 3 22 . . 24 18 Critical Kills 1 | . . . . . 1 . Critical Parts Destroyed 1 | . . . . . 1 . Critical Strikes 8 | . . 6 . . 2 . Burn 6 | . . 6 . . . . Destroy 2 | . . . . . 2 . Melee Attacks . | . . . . . . . Impact . | . . . . . . . Slashing . | . . . . . . . Piercing . | . . . . . . . Sneak Attacks . | . . . . . . . Combat Hostiles . | . . . . . . . Follow-up Attacks . | . . . . . . . Damage Inflicted 3531 | . 98 913 . . 1274 1246 Guns 2254 | . 98 913 . . 832 411 Cannons 1272 | . . . . . 437 835 Explosions . | . . . . . . . Melee . | . . . . . . . Ramming 5 | . . . . . 5 . Kinetic 992 | . . . . . 753 239 Thermal 2375 | . 76 776 . . 516 1007 Explosive . | . . . . . . . Electromagnetic 159 | . 22 137 . . . . Impact . | . . . . . . . Slashing . | . . . . . . . Piercing . | . . . . . . . Highest Corruption 5 | . . . . . 5 2 Average Corruption 4 | . . . . . 4 2 Corruption Purged . | . . . . . . . Corruption Blocked 3 | . . . . . . 3 Effects 5 | . . . . . 5 . Message Errors 1 | . . . . . 1 . Matter Fused 2 | . . . . . 2 . Energy Discharges 1 | . . . . . 1 . Misfires 1 | . . . . . 1 . Overload Shots . | . . . . . . . Overflow Damage 69 | . . . . . 23 46 Projectiles 69 | . . . . . 23 46 Explosions . | . . . . . . . Melee . | . . . . . . . Knockbacks . | . . . . . . . Impact . | . . . . . . . Kinetic . | . . . . . . . Secondary . | . . . . . . . Self-Inflicted Damage . | . . . . . . . Shots . | . . . . . . . Rammed . | . . . . . . . Targets Rammed 1 | . . . . . 1 . Kicked 1 | . . . . . 1 . Crushed . | . . . . . . . Highest Temperature 450 | . 312 . . . 163 450 Average Temperature 159 | . 149 . . . 54 209 Received Heat Transfer 381 | . . 204 . . 150 27 Effects 9 | . . . . . . 9 Shutdowns 2 | . . . . . . 2 Interference 3 | . . . . . . 3 Matter Decay 1 | . . . . . . 1 Short Circuit 3 | . . . . . . 3 Siege Activations . | . . . . . . . Martial Activations . | . . . . . . . Shielding Activations . | . . . . . . . Robots Disrupted . | . . . . . . . Combat Hostiles . | . . . . . . . Robots Corrupted . | . . . . . . . Combat Hostiles . | . . . . . . . Parts Fried . | . . . . . . . Impact Corruptions . | . . . . . . . Robots Melted . | . . . . . . . Combat Hostiles . | . . . . . . . Parts Melted 3 | . . 2 . . . 1 Heat Transferred 4551 | . 222 2368 . . 666 1295 Parts Sabotaged . | . . . . . . . Parts Stolen . | . . . . . . . Parts Stripped . | . . . . . . . Power Chain Reactions . | . . . . . . . Alert | -11 -10 -10 -8 -8 -6 -5 ------- Run | Yrd Mat Sub Rec Scr Fac Fac Maximum Alert Level . | . . . . . . . Low Security (%) 100 | 100 100 . 100 . 100 100 Level 1 . | . . . . . . . Level 2 . | . . . . . . . Level 3 . | . . . . . . . Level 4 . | . . . . . . . Level 5 . | . . . . . . . High Security . | . . . . . . . Max Security . | . . . . . . . Peak Influence 117 | . 40 . 34 . 117 88 Initial 34 | . . . 34 . . 32 Average 17 | . 5 . 14 . 18 24 Influence Increases 742 | . 51 165 . . 272 254 Destroy 0b10 Robot/C 520 | . 40 120 . . 160 200 Destroy 0b10 Robot/NC 15 | . 5 . . . 5 5 Destroy Leader 62 | . 2 . . . 40 20 Successful Hack 2 | . 2 . . . . . Disable Machine 15 | . . . . . 15 . Destroy Structure 23 | . 2 . . . 7 14 Lose Combat Pursuer 105 | . . 45 . . 45 15 Influence Decreases 738 | . 51 92 73 . 206 316 Entered New Map 73 | . . . 39 . . 34 Time Decay 445 | . 51 72 34 . 86 202 Lost Part 220 | . . 20 . . 120 80 Squads Dispatched 6 | . . . . . 4 2 Investigation 1 | . . . . . 1 . Extermination 2 | . . . . . 1 1 Reinforcement 3 | . . . . . 2 1 Assault . | . . . . . . . Garrison . | . . . . . . . Intercept . | . . . . . . . Searches Triggered . | . . . . . . . Construction Impeded 2 | . . . . . 1 1 Haulers Reinforced . | . . . . . . . Active Scanning Responses . | . . . . . . . Cargo Convoy Interrupts . | . . . . . . . Stealth | -11 -10 -10 -8 -8 -6 -5 --------- Run | Yrd Mat Sub Rec Scr Fac Fac Distress Signals 1 | . . . . . . 1 Communications Jammed . | . . . . . . . Distress Signals . | . . . . . . . Times Spotted 52 | . 4 19 . . 12 17 Peak Tracking Total 6 | . 3 6 . . 4 6 Tactical Retreats 8 | . . 3 . . 2 3 Traps | -11 -10 -10 -8 -8 -6 -5 ------- Run | Yrd Mat Sub Rec Scr Fac Fac Traps Triggered 4 | . . . . . 2 2 Indirectly . | . . . . . . . Trap Hack Attempts . | . . . . . . . Triggered . | . . . . . . . Disarmed . | . . . . . . . Reprogrammed . | . . . . . . . Reused . | . . . . . . . Traps Extracted . | . . . . . . . Installed . | . . . . . . . Triggered . | . . . . . . . Machines | -11 -10 -10 -8 -8 -6 -5 ---------- Run | Yrd Mat Sub Rec Scr Fac Fac Machines Disabled 2 | . . 1 . . 1 . Max in Single Turn 1 | . . 1 . . 1 . Machines Repaired . | . . . . . . . Machines Dismantled . | . . . . . . . Machines Sabotaged . | . . . . . . . Overloaded Fab Kills . | . . . . . . . Hacking | -11 -10 -10 -8 -8 -6 -5 --------- Run | Yrd Mat Sub Rec Scr Fac Fac Machines Accessed 17 | . 2 . 4 4 2 5 Terminals 5 | . 1 . 1 . . 3 Fabricators 1 | . . . . . . 1 Repair Stations . | . . . . . . . Recycling Units 5 | . 1 . 1 . 2 1 Scanalyzers . | . . . . . . . Garrison Access . | . . . . . . . Total Hacks 77 | . 8 . 27 31 3 8 Successful 63 | . 3 . 26 31 . 3 Failed 14 | . 5 . 1 . 3 5 Catastrophic 4 | . . . . . 1 3 Database Lockouts . | . . . . . . . Manual 5 | . 4 . 1 . . . Terminals 15 | . 7 . 2 . . 6 Fabricators 1 | . . . . . . 1 Repair Stations . | . . . . . . . Recycling Units 6 | . 1 . 1 . 3 1 Scanalyzers . | . . . . . . . Garrison Access . | . . . . . . . Terminal Hacks 59 | . 2 . 24 31 . 2 Record 55 | . 1 . 24 30 . . Prototype ID Bank 1 | . . . . . . 1 Locate Traps 1 | . . . . . . 1 Hauler Manifests 1 | . 1 . . . . . Proto ID Catalog 1 | . . . . 1 . . Fabricator Hacks 1 | . . . . . . 1 Network Status 1 | . . . . . . 1 Repair Station Hacks . | . . . . . . . Recycling Unit Hacks 2 | . 1 . 1 . . . Retrieve Components 2 | . 1 . 1 . . . Scanalyzer . | . . . . . . . Garrison Access Hacks . | . . . . . . . Unauthorized Hacks 1 | . . . 1 . . . Terminals 1 | . . . 1 . . . Botnet 1 | . . . 1 . . . Fabricators . | . . . . . . . Repair Stations . | . . . . . . . Recycling Units . | . . . . . . . Scanalyzers . | . . . . . . . Garrison Access . | . . . . . . . Data Cores Recovered . | . . . . . . . Used . | . . . . . . . Hacking Detections 8 | . 1 . 1 . 2 4 Full Trace Events 2 | . 1 . . . 1 . Feedback Events . | . . . . . . . Feedback Blocked . | . . . . . . . Robot Schematics Acquired . | . . . . . . . Robots Built . | . . . . . . . Authchips . | . . . . . . . Time . | . . . . . . . Total Robot Build Rating . | . . . . . . . Part Schematics Acquired . | . . . . . . . Parts Built . | . . . . . . . Authchips . | . . . . . . . Time . | . . . . . . . Total Part Build Rating . | . . . . . . . Parts Repaired . | . . . . . . . Time . | . . . . . . . Parts Recycled . | . . . . . . . Recycled Matter . | . . . . . . . Retrieved Matter . | . . . . . . . Retrieved Components 6 | . 3 . 3 . . . Parts Scanalyzed . | . . . . . . . Part Schematics Acquired . | . . . . . . . Parts Damaged . | . . . . . . . Bothacking | -11 -10 -10 -8 -8 -6 -5 ------------ Run | Yrd Mat Sub Rec Scr Fac Fac Used RIF Installer . | . . . . . . . Robots Hacked . | . . . . . . . Non-combat . | . . . . . . . Combat . | . . . . . . . Robot Hacks Applied . | . . . . . . . Relay Couplers Released . | . . . . . . . Fabnet Peak Effective % . | . . . . . . . Robots Rewired . | . . . . . . . Allies Hacked . | . . . . . . . Hacks Repelled . | . . . . . . . Allies | -11 -10 -10 -8 -8 -6 -5 -------- Run | Yrd Mat Sub Rec Scr Fac Fac Total Allies . | . . . . . . . Largest Group . | . . . . . . . Highest-Rated Group . | . . . . . . . Highest-Rated Ally . | . . . . . . . Total Orders . | . . . . . . . Ally Attacks . | . . . . . . . Total Damage . | . . . . . . . Kills . | . . . . . . . Allies Corrupted . | . . . . . . . Allies Melted . | . . . . . . . Intel | -11 -10 -10 -8 -8 -6 -5 ------- Run | Yrd Mat Sub Rec Scr Fac Fac Active Infowar (turns) 1370 | . . . . . 686 684 Optics 995 | . . . . . 311 684 ECM 576 | . . . . . 376 200 Robot Analysis Total . | . . . . . . . Derelict Logs Recovered 3 | . . 1 . 2 . . Drone Launches . | . . . . . . . Drone Recoveries . | . . . . . . . Exploration | -11 -10 -10 -8 -8 -6 -5 ------------- Run | Yrd Mat Sub Rec Scr Fac Fac Turns Passed 3913 | 81 322 603 103 1408 690 706 Spaces Moved 2787 | 54 239 351 86 1151 386 520 Core 16 | 10 . . . . 6 . Treads . | . . . . . . . Legs 2771 | 44 239 351 86 1151 380 520 Wheels . | . . . . . . . Hover . | . . . . . . . Flight . | . . . . . . . Fastest Speed 50 | 50 120 120 120 120 90 97 Average Speed 117 | 121 120 120 120 120 123 102 Slowest Speed 400 | 150 120 120 120 120 400 270 Overloaded Moves . | . . . . . . . Propulsion Burnouts . | . . . . . . . Robots Hopped . | . . . . . . . Potential Cave-ins . | . . . . . . . Cave-ins Triggered . | . . . . . . . Exploration Rate (%) 22 | 4 25 22 15 61 10 17 Regions Visited 6 Branch Regions 3 Pre-discovered Areas 6 | . . 1 . 5 . . Known Exits Taken 5 | . 1 1 1 1 1 . Unknown Exits Taken 1 | 1 . . . . . . Scrap Searched 3 | . . . . 3 . . Spaces Dug . | . . . . . . . Terrain Destroyed 11 | . . . . . 5 6 Melee . | . . . . . . . Projectile 10 | . . . . . 4 6 AOE . | . . . . . . . Terrain Rammed . | . . . . . . . Walls Destroyed . | . . . . . . . Machines Disabled . | . . . . . . . Actions | -11 -10 -10 -8 -8 -6 -5 --------- Run | Yrd Mat Sub Rec Scr Fac Fac Total 3221 | 69 255 447 86 1180 543 641 Wait 143 | . . 16 1 11 57 58 Move 2781 | 53 238 350 85 1150 385 520 Hop . | . . . . . . . Pick Up 64 | 10 4 9 . 7 22 12 Fast Attach 9 | . . 1 . 3 5 . Attach 47 | 6 1 2 . 1 25 12 Detach 4 | . . . . . 4 . Swap 11 | . 2 5 . . 4 . Drop 24 | . 1 9 . 8 6 . Fire 137 | . 9 55 . . 34 39 Melee . | . . . . . . . Ram . | . . . . . . . Kick 1 | . . . . . 1 . Crush . | . . . . . . . Escape Stasis . | . . . . . . . Rewire . | . . . . . . . Trap . | . . . . . . . Miscellaneous . | . . . . . . . Route ------- -11/Scrapyard -10/Materials -10/Subcaves (discovered 2 exits: *Mat / *Rec) -8/Recycling -8/Scraptown (discovered 2 exits: *Fac x2) -6/Factory (discovered 8 exits: *Fac x4 / Low x2 / Ext x2) -5/Factory History --------- Turn | Location | Event 15 | -11/Scrapyard | Discovered new exit (range 15) 82 | -11/Scrapyard | Entered Materials 116 | -10/Materials | Discovered new exit (range 6) 306 | -10/Materials | Build established: Mutant 402 | -10/Materials | Identified exit to Subcaves 404 | -10/Materials | Entered Subcaves 405 | -10/Subcaves | Approached by a straggling Scientist 428 | -10/Subcaves | Shifting Twisted Machinery released Mak. Light Armor Plating 472 | -10/Subcaves | Discovered new exit (range 7) 478 | -10/Subcaves | Identified exit to Materials 514 | -10/Subcaves | A swath of the cavern ceiling suddenly collapsed 623 | -10/Subcaves | Ambushed by swarm of Subdwellers 634 | -10/Subcaves | Ambushed by Subdwellers from Twisted Machinery 680 | -10/Subcaves | Core integrity fell below 50% 688 | -10/Subcaves | Lost 4 allies 844 | -10/Subcaves | Core integrity fell below 20% 878 | -10/Subcaves | Discovered new exit (range 15) 921 | -10/Subcaves | Identified exit to Recycling 950 | -10/Subcaves | Shifting Twisted Machinery released Battle Cannon 1007 | -10/Subcaves | Entered Recycling 1008 | -8/Recycling | Met a Zionite searching for Scraptown 1020 | -8/Recycling | Build established: Scavenger-Mutant 1059 | -8/Recycling | Scanned before Scraplab entrance 1076 | -8/Recycling | Entered Scraplab 1092 | -8/Recycling | Discovered new exit (range 3) 1094 | -8/Recycling | Identified exit to Scraptown 1110 | -8/Recycling | Entered Scraptown 1232 | -8/Scraptown | Visited Symbiants 1273 | -8/Scraptown | Visited Fellowship of the Rings 1317 | -8/Scraptown | Visited UFD Registry 1317 | -8/Scraptown | Registered with UFD as "Softsink" 1365 | -8/Scraptown | Heard Great Nut preacher, LISTEN AND RECITE! 1375 | -8/Scraptown | Scanned Subdweller tech in exchange for log data 1377 | -8/Scraptown | Learned location of 1 exit from Factory 1379 | -8/Scraptown | Learned 12 Factory zone layouts 1412 | -8/Scraptown | Guru changed UFD alias to "Wrenchshell" 1435 | -8/Scraptown | Discovered new exit (range 13) 1452 | -8/Scraptown | Identified exit to Factory 1501 | -8/Scraptown | Visited CPS Storage 1682 | -8/Scraptown | Learned location of Extension (-6) 1708 | -8/Scraptown | Visited Cyclists 1773 | -8/Scraptown | Visited Cave Peace 1873 | -8/Scraptown | Visited LU-1G1's Boring Crew 1956 | -8/Scraptown | Visited Junk Cannon Lab 1993 | -8/Scraptown | Visited Science Guys 2121 | -8/Scraptown | Visited DA-N13 Charitable Foundation 2127 | -8/Scraptown | Found DCF Scrap (31 items) 2206 | -8/Scraptown | Visited Cartography Club 2422 | -8/Scraptown | Learned location of Proximity Caves (-5) 2422 | -8/Scraptown | Learned 8 Materials zone layouts 2422 | -8/Scraptown | Learned 20 Factory zone layouts 2422 | -8/Scraptown | Learned 24 Factory zone layouts 2422 | -8/Scraptown | Learned location of Testing (-3) 2422 | -8/Scraptown | Learned 4 Mines zone layouts 2422 | -8/Scraptown | Learned 8 Upper Caves zone layouts 2422 | -8/Scraptown | Learned 12 Upper Caves zone layouts 2422 | -8/Scraptown | Learned Research emergency access door positions 2422 | -8/Scraptown | Learned location of 2 exits from Factory 2422 | -8/Scraptown | Learned location of 3 exits from Factory 2422 | -8/Scraptown | Learned location of 2 exits from Research 2518 | -8/Scraptown | Entered Factory 2518 | -6/Factory | Evolved 8 slots: Power x1, Propulsion x2, Utility x4, Weapon x1 2519 | -6/Factory | Identified exit to Factory 2520 | -6/Factory | Identified exit to Lower Caves 2520 | -6/Factory | Identified exit to Extension 3129 | -6/Factory | Destroyed 7 combat bots 3132 | -6/Factory | Core integrity fell below 50% 3166 | -6/Factory | Lost 12 parts (3p4n1u4w) 3208 | -6/Factory | Entered another Factory area 3208 | -5/Factory | Evolved 2 slots: Power x1, Propulsion x1 3383 | -5/Factory | Build established: Scavenger-Gunner 3654 | -5/Factory | Lost 5 parts (2p1u2w) 3914 | -5/Factory | Self-destructed Last Messages --------------- 03900_ P-70 Sage destroyed. 03902_ ALERT: Cargo convoy en route, clear transfer corridor. 03904_ Overheating: Matter decay (-31). 03906_ Power failure, Lgt. Angular Momentum Engine shutdown. 03907_ Mak. ECM Suite destroyed. 03910_ Broken Lgt. Nuclear Core destroyed. 03910_ Destroyed Hpw. Shock Rifle. 03911_ Imp. VSS Leg broken. 03911_ Overheating: Short circuit. You have activated your volley range indicator ('v' or the button under the VOLLEY window), useful for visualizing the range of your currently active weapons. That window and button are only visible while in targeting mode. See the manual for a detailed description of its advanced features. 03914_ Phase Cannon broken. 03914_ Overheating: Short circuit. Map ----- +----------------------------------------------------+ | ??????????????# #????????????????????????????# | | ??????????????#% #????????????????????????????# | | ??????????????# %% #????????????????????????????# | | ############### ############################## | | "%" | | " ^ | | | | | | ^ | | ^ | | | | ###########+################################# | | ??????????????? ????????????????????????????# | | ??????????????? ????????????????????????????# | | ??????????????? ????????????????????????????# " F | | ??????????????? ????????????????????????????# """ | | ??????????????? ????????????????????????????# | | ???????????????"????????????????????????????# | | ???????????????"????????????????????????????# | | ????????????????????????????????????????????# | | ???????####################+################# | | ?????? ^ | | ?????? | | ????? | | ????? ! p | | ????? @ %| | | ???????????????############;;;;;;############ | | ?????????????????????# #?????????# | | ?????????????????????# """ """ ! #?????????# | | ?????????????????????# """ """ #?????????###### | | ?????????????????????# """ """ #?????????????# | | ?????????????????????# #?????????????#! | | ?????????????????????# """ """ #?????????????# | | ?????????????????????# """ """ #?????????????# | | ?????????????????????# """ """ ] #?????????????# | | ?????????????????????# #?????????????# | | ?????????????????????# #?????????????# | | ?????????????????????# #?????????????# | | ?????????????????????# #?????????????# | | ?????????????????????##############?????????????# | | ????????????????????????????????????????????????# | | ????????????????????????????????????????????????#/ | | ?????????????????????????????????????????????????? | | ?????????????????????????????????????????????????? | | ?????????????????????????????????????????????????? | | ?????????????????????????????????????????????????? | | ?????????????????????????????????????????????????? | | | | | | | +----------------------------------------------------+ Best States ------------- Heat Dissipation 56 Energy Generation 40 Energy Capacity 410 Matter Stores 300 Matter Capacity 300 Sight Range 22 Terrain Scan Density 10 ECM Strength 2 Corruption Block 15 Evasion (%) 78 Targeting Accuracy 8 Item Schematics ----------------- None Robot Schematics ------------------ None Fabricated ------------ Nothing Repaired ---------- Nothing Alien Tech Used ----------------- None Achievements -------------- Dodgeball, But With Guns Challenges ------------ None Game ------ Seed RapidSchematicNeutralizer Manual? 0 Play Time 01:05:37 Cumulative 6.4 hours Start 2025.07.16 @ 21:02:22 End 2025.07.25 @ 04:17:59 Sessions 5 Manual Loads 0 Difficulty Rogue Special Mode None Game No. 8 Rogue 8 Adventurer 0 Explorer 0 Win Type - Total 0 Types 0/0/0/0/0/0/0/0/0/0 Lore% 21 Gallery% 10 Achievement% 16 Wizard Run 0 Options --------- Layout 1 ASCII 0 Keyboard 0 Movement Mouse Keybinds 0 Fullscreen 1 Font 24/Terminus Map View 50x35 Zoom Use 0% Tactical HUD 1 Map Filters NONE Filters NONE Steam 1 RUN: e3d4dcaa-44a7-4af5-b90b-2dade0895309